[Event "44th Chess Olympiad Open 2022"]
[Site "Chennai"]
[Date "2022.08.06"]
[Round "8.17"]
[White "Gazik, Viktor"]
[Black "Tari, Aryan"]
[Result "1-0"]
[WhiteElo "2544"]
[BlackElo "2672"]
[Annotator "TA"]
[PlyCount "89"]
[EventDate "2022.??.??"]
[TimeControl "60"]

{[%evp 9,89,2,1,18,5,0,0,6,6,6,22,30,42,56,46,47,80,89,89,76,91,84,90,83,79,73,
86,79,82,80,91,93,110,81,100,89,105,97,101,97,104,76,83,98,72,98,95,72,198,217,
283,279,285,246,247,252,381,381,489,487,596,577,656,677,653,683,1009,1002,1153,
1081,1034,1004,29971,29972,6487,1295,6399,1265,29984,29983,29983,854]} 1. e4 {
[%emt 0:00:03]} c5 {[%emt 0:00:07]} 2. Nf3 {[%emt 0:00:16]} d6 {[%emt 0:00:09]}
3. Nc3 {[%emt 0:00:21]} Nf6 {[%emt 0:00:12]} 4. e5 {[%emt 0:00:24]} dxe5 {
[%emt 0:00:09]} 5. Nxe5 {[%emt 0:00:05]} a6 {[%emt 0:01:35]} 6. g3 {[%emt 0:00:
00] B50: Sicilian: 2...d6, Miscellaneous.} Qd6 {[%emt 0:00:13] is more
profitable than 6...Qc7 at the moment.} 7. Nf3 {[%emt 0:00:20][%cal Ye5f3,
Yf3d2,Yd2c4]} Nc6 {[%emt 0:11:20]} 8. Bg2 {[%emt 0:02:00] The position is
equal.} e5 {[%emt 0:06:30]} 9. d3 {[%emt 0:07:35]} h6 {[%emt 0:00:00]} 10. O-O
{[%emt 0:00:27]} Be7 {[%emt 0:01:17] [#]} 11. Nd2 $146 {[%emt 0:00:00]} ({
Predecessor:} 11. Re1 Bg4 12. h3 Be6 13. b3 O-O 14. Bb2 Rad8 15. a4 Qc7 16. Nd2
Rfe8 17. Nc4 {0-1 (55) Kraus,T (2466)-Krzyzanowski,M (2503) Prague 2021}) 11...
Bg4 {[%emt 0:10:49]} 12. Nc4 {[%emt 0:02:29]} Qd8 {[%emt 0:06:46]} 13. Bxc6+ {
[%emt 0:06:25]} (13. Qe1 Nd4 14. Qd2 (14. Nxe5 Nxc2 15. Qd2 Nxa1 $17) (14. Qxe5
O-O $11) (14. Bxb7 Ra7 $17) 14... Bf3 $11) 13... bxc6 {[%emt 0:00:00]} 14. f3 {
[%emt 0:14:17]} (14. Qe1 $6 Bh3 $11) 14... Be6 {[%emt 0:00:11]} 15. Qe2 {
[%emt 0:15:42]} Nd7 {[%emt 0:04:21]} 16. Kg2 {[%emt 0:08:13]} O-O {[%emt 0:04:
36]} 17. Bd2 {[%emt 0:04:30][%cal Yc1d2,Yd2a5,Ya5b6,Yb6c5,Yc5f8]} (17. Nxe5
Nxe5 18. Qxe5 Re8 $14) 17... Re8 {[%emt 0:04:28]} 18. Rae1 {[%emt 0:00:30]} ({
Worse is} 18. Nxe5 Bf6 19. f4 (19. Nxc6 $2 Qb6 $19) 19... Nxe5 20. fxe5 {[#]}
Bxe5 $1 $17) 18... Bf8 {[%emt 0:02:55]} 19. b3 {[%emt 0:00:00]} f6 {[%emt 0:07:
49]} 20. Na4 {[%emt 0:00:53] Pair of Knights!} Rb8 {[%emt 0:01:47]} 21. Qf2 {
[%emt 0:04:43]} Bd5 {[%emt 0:05:41]} 22. Ba5 {[%emt 0:00:00]} Qc8 {[%emt 0:02:
44]} 23. Ncb6 {[%emt 0:00:35] White is more active.} Nxb6 {[%emt 0:02:51]} 24.
Bxb6 {[%emt 0:00:02]} Be6 {[%emt 0:01:21]} 25. Kh1 {[%emt 0:01:26]} c4 {
[%emt 0:01:05]} 26. dxc4 {[%emt 0:11:45]} Bh3 {[%emt 0:00:00]} 27. Rg1 {
[%emt 0:00:02] Hoping for g4.} e4 {[%emt 0:03:08]} 28. fxe4 {[%emt 0:02:34]} c5
{[%emt 0:03:18] This costs Black the game.} (28... Qg4 $16 29. Qf4 Re6) 29.
Bxc5 $18 {[%emt 0:04:59]} Qc6 {[%emt 0:00:56]} 30. Bxf8 {[%emt 0:00:08]} Rxe4 {
[%emt 0:01:45]} 31. Qf3 {[%emt 0:00:56]} Bg4 {[%emt 0:00:00]} 32. Qg2 {[%emt 0:
00:10]} f5 {[%emt 0:00:56]} (32... Rbe8 $142 33. Bc5 Bh3 34. Qxh3 (34. Qf3 Bg4
$18) 34... Rxe1+ 35. Qg2 Qxg2+ 36. Kxg2 R1e2+ 37. Kf3 Rxc2) 33. Bc5 {[%emt 0:
05:10]} Rbe8 {[%emt 0:01:43]} 34. Ref1 {[%emt 0:00:54]} g5 {[%emt 0:04:28]} 35.
Rf2 {[%emt 0:00:24]} R8e5 {[%emt 0:01:00]} 36. Bd4 {[%emt 0:00:31]} Re6 {
[%emt 0:00:32]} 37. c3 {[%emt 0:00:33]} Qe8 {[%emt 0:00:00]} 38. Nc5 {[%emt 0:
00:20][%csl Ye4,Ye6][%cal Ya4c5,Yc5e6,Ye6g5]} Qh5 {[%emt 0:00:32]} 39. Nxe6 {
[%emt 0:01:06] And now Nc5 would win.} Bh3 {[%emt 0:00:15]} 40. Qf3 {[%emt 0:
00:39]} Bg4 {[%emt 0:00:12] [#]} 41. Qxe4 $3 {[%emt 0:04:41]} fxe4 {[%emt 0:00:
01]} 42. Rf8+ {[%emt 0:00:07]} Kh7 {[%emt 0:00:00] [#]} 43. Nxg5+ $1 {[%emt 0:
00:10]} Kg6 {[%emt 0:03:35]} (43... Qxg5 44. Rh8+) 44. Rg8+ {[%emt 0:01:36]}
Kf5 {[%emt 0:00:10]} 45. Rf1+ {[%emt 0:00:06] Weighted Error Value: White=0.03
(flawless) /Black=0.38} 1-0

[Event "44th Chess Olympiad Open 2022"]
[Site "Chennai"]
[Date "2022.08.06"]
[Round "8.17"]
[White "Repka, Christopher"]
[Black "Urkedal, Frode Olav Olsen"]
[Result "1/2-1/2"]
[WhiteElo "2516"]
[BlackElo "2555"]
[Annotator "TA"]
[PlyCount "120"]
[EventDate "2022.??.??"]
[TimeControl "60"]

{[%evp 17,120,0,0,0,2,0,0,-19,0,0,0,-6,0,-20,-20,-21,15,-14,-7,-25,-25,-48,-39,
-82,-73,-72,-62,-61,-50,-64,-56,-95,-96,-98,-106,-145,-85,-116,-89,-83,-40,-41,
0,0,-19,-94,-92,-155,-155,-148,-95,-93,-97,-95,-111,-119,-30,-35,-29,-40,0,-7,
0,0,0,0,0,0,0,0,0,-20,-13,-7,0,0,0,0,0,0,0,0,0,0,0,0,0,0,0,0,0,0,0,0,0,0,0,0,0,
0,0,0,0,0,0]} 1. d4 {[%emt 0:00:15]} Nf6 {[%emt 0:00:07]} 2. c4 {[%emt 0:00:05]
} e6 {[%emt 0:00:04]} 3. Nc3 {[%emt 0:00:43]} Bb4 {[%emt 0:00:08]} 4. e3 {
[%emt 0:00:27]} O-O {[%emt 0:00:41]} 5. Bd3 {[%emt 0:00:35]} d5 {[%emt 0:00:20]
} 6. Nf3 {[%emt 0:00:13]} dxc4 {[%emt 0:04:00]} 7. Bxc4 {[%emt 0:00:08]} c5 {
[%emt 0:00:03]} 8. O-O {[%emt 0:00:17]} cxd4 {[%emt 0:03:48]} 9. exd4 {[%emt 0:
00:00]} b6 {[%emt 0:00:46]} 10. Qa4 {[%emt 0:02:44] E54: Nimzo-Indian:
Rubinstein: Main Line: 7...dxc4 8 Bxc4.} Be7 {[%emt 0:09:05]} 11. Be3 {[%emt 0:
00:00]} Bb7 {[%emt 0:24:06]} 12. Ne5 {[%emt 0:00:11] [#]} Qe8 $146 {[%emt 0:00:
00]} ({Predecessor:} 12... a6 13. Qb3 b5 14. Nxf7 Rxf7 15. Bxe6 Qe8 16. Rfe1
Bc8 17. Bxf7+ Qxf7 18. Bg5 Qxb3 19. axb3 {1-0 (44) Van Foreest,J (2682)
-Huschenbeth,N (2612) Linares 2020}) 13. Bb5 {[%emt 0:09:22]} Qd8 {[%emt 0:00:
00]} 14. Qb3 {[%emt 0:06:45]} Nd5 {[%emt 0:05:24]} 15. Bc4 {[%emt 0:11:29]}
Nxc3 {[%emt 0:06:47]} 16. bxc3 {[%emt 0:00:05][%cal Ye5f7]} Kh8 {[%emt 0:06:14]
} 17. f4 {[%emt 0:23:21]} (17. Bb5 {seems wilder.} Bd6 18. c4 Qh4 19. f4) 17...
Nc6 {[%emt 0:00:27]} 18. Nxc6 {[%emt 0:08:02]} Bxc6 {[%emt 0:00:06]} 19. f5 {
[%emt 0:14:40]} Bd6 $1 {[%emt 0:07:16] Threatens to win with ...Qh4.} 20. f6 {
[%emt 0:06:34]} gxf6 {[%emt 0:00:41] Hoping for ...Rg8.} 21. d5 {[%emt 0:00:14]
} exd5 {[%emt 0:00:28]} 22. Bd3 {[%emt 0:00:05]} Rg8 {[%emt 0:02:09][%cal
Yd5d4]} 23. Bd4 $1 {[%emt 0:00:17]} Be5 {[%emt 0:02:49]} 24. Rf5 {[%emt 0:00:
00]} Rg5 {[%emt 0:11:00]} 25. Raf1 {[%emt 0:08:17]} Rxf5 {[%emt 0:05:56]} 26.
Bxf5 {[%emt 0:00:02] [#]} Qe7 {[%emt 0:01:06]} (26... Qf8 $142 $1 27. Rf2 Qh6)
27. Qd1 $17 {[%emt 0:00:09] White wants to mate with Qh5.} Rg8 {[%emt 0:01:09]}
28. Qh5 {[%emt 0:01:08][%csl Gf5][%cal Rh5h7]} Rg7 {[%emt 0:00:29]} 29. Qh4 {
[%emt 0:00:31]} Bxd4+ {[%emt 0:01:58]} 30. cxd4 {[%emt 0:00:03]} Qe3+ {[%emt 0:
00:00]} (30... Qe2 31. Qf2 Bb5 32. Re1) 31. Kh1 {[%emt 0:00:03] [#]} (31. Qf2
$11 Qg5 32. h4) 31... Bb5 $1 {[%emt 0:02:35]} (31... Qe2 $6 32. Rg1 $11) 32.
Re1 {[%emt 0:02:03]} (32. Qxf6 $142 Qg5 33. Qxg5 Rxg5 34. Rf3) 32... Qd2 {
[%emt 0:01:04][%csl Gg7,Ya2,Yg2][%cal Rd2g2]} 33. Rg1 {[%emt 0:00:57] [#]} Bf1
$1 {[%emt 0:01:40]} 34. Bh3 {[%emt 0:00:18]} Bd3 {[%emt 0:00:18] Strongly
threatening ...Rg6.} 35. Qxf6 {[%emt 0:00:18]} Qg5 {[%emt 0:00:08]} 36. Qd6 {
[%emt 0:00:44]} Be4 {[%emt 0:00:31]} (36... h6 $17 {aiming for ...Be4.} 37. g3
Qg6 38. Qxg6 Rxg6) 37. Qf8+ $11 {[%emt 0:00:18]} Rg8 {[%emt 0:00:38]} 38. Qxf7
{[%emt 0:00:03]} Qg7 {[%emt 0:01:13]} (38... Qh6 {keeps more tension.} 39. Qe7
Rf8 40. Qe5+ Qg7) 39. Qxg7+ {[%emt 0:00:24] The position is equal.} Rxg7 {
[%emt 0:00:31] Endgame KRB-KRB} 40. Rc1 {[%emt 0:00:04] Against Rc7} Re7 {
[%emt 0:00:13]} 41. Kg1 {[%emt 0:30:56]} Bd3 {[%emt 0:31:13]} 42. Rc8+ {
[%emt 0:01:09]} Kg7 {[%emt 0:00:00]} 43. a3 {[%emt 0:00:00]} a5 {[%emt 0:00:00]
} 44. Rd8 {[%emt 0:00:00]} b5 {[%emt 0:00:00]} 45. Bg4 {[%emt 0:00:00]} ({
Avoid the trap} 45. Rxd5 $2 b4 46. axb4 (46. Rxa5 $2 b3 $19) (46. Rg5+ $2 Kf7
$19) 46... axb4 $19) 45... b4 {[%emt 0:00:00]} 46. axb4 {[%emt 0:00:00]} axb4 {
[%emt 0:00:00]} 47. Rb8 {[%emt 0:00:00] Against Rb7} Re4 {[%emt 0:00:00][%csl
Yd4,Yg4]} 48. Bf3 {[%emt 0:01:29]} ({But not} 48. Bf5 $2 Re1+ 49. Kf2 Rf1+ 50.
Ke3 Bxf5 $19) 48... Rxd4 {[%emt 0:00:00]} 49. Kf2 {[%emt 0:00:01]} Bc2 {
[%emt 0:00:00]} 50. Ke3 {[%emt 0:00:35]} Rd3+ {[%emt 0:00:00]} 51. Kf4 {
[%emt 0:01:09]} b3 {[%emt 0:00:00]} 52. Ke5 {[%emt 0:00:09]} d4 {[%emt 0:02:06]
[%cal Yd3f3] ...Rxf3! is the strong threat.} 53. Bd5 {[%emt 0:00:00]} Rd2 {
[%emt 0:02:04]} 54. Bxb3 {[%emt 0:01:27]} d3 {[%emt 0:01:10]} 55. Kd4 {[%emt 0:
00:02]} Rf2 {[%emt 0:01:26]} 56. Kc3 {[%emt 0:00:17]} Bxb3 {[%emt 0:00:00]} 57.
Rxb3 {[%emt 0:00:05]} Rxg2 {[%emt 0:00:42]} 58. Kxd3 {[%emt 0:00:00]} Rxh2 {
[%emt 0:00:06] And now ...Rh3+ would win.} 59. Rb6 {[%emt 0:00:15]} Rf2 {
[%emt 0:00:25]} 60. Ke3 {[%emt 0:00:04]} Rf7 {[%emt 0:00:20] Weighted Error
Value: White=0.08 (flawless) /Black=0.11 (very precise)} 1/2-1/2

[Event "44th Chess Olympiad Open 2022"]
[Site "Chennai"]
[Date "2022.08.06"]
[Round "8.18"]
[White "Vallejo Pons, Francisco"]
[Black "Amin, Bassem"]
[Result "1-0"]
[WhiteElo "2702"]
[BlackElo "2680"]
[Annotator "TA"]
[PlyCount "89"]
[EventDate "2022.??.??"]
[TimeControl "60"]

{[%evp 14,89,27,29,31,41,18,0,7,0,0,0,13,0,0,0,27,14,10,0,41,36,58,66,61,47,52,
42,28,31,42,23,30,28,33,-14,-18,-20,0,0,56,43,108,100,102,93,154,155,155,155,
166,168,191,189,191,124,127,0,180,0,166,166,170,137,327,293,317,310,618,615,
2416,2454,2447,2393,2277,2097,1691,1800]} 1. d4 {[%emt 0:00:06]} Nf6 {[%emt 0:
00:00]} 2. c4 {[%emt 0:00:10]} g6 {[%emt 0:00:09]} 3. Nc3 {[%emt 0:00:09]} Bg7
{[%emt 0:00:05]} 4. e4 {[%emt 0:00:15]} d6 {[%emt 0:00:49]} 5. Be2 {[%emt 0:00:
00]} O-O {[%emt 0:00:07]} 6. Be3 {[%emt 0:00:05]} Na6 {[%emt 0:02:37]} 7. h4 {
[%emt 0:03:23][%cal Yh2h4,Yh4h5,Yh5h6]} e5 {[%emt 0:17:48]} 8. d5 {[%emt 0:01:
39]} Nc5 {[%emt 0:00:08] E73: King's Indian: Averbakh Variation without 6...c5.
} 9. Qc2 {[%emt 0:02:38]} c6 {[%emt 0:02:26]} 10. h5 {[%emt 0:00:00]} cxd5 {
[%emt 0:01:36] The position is equal.} 11. cxd5 {[%emt 0:00:40]} (11. h6 d4 12.
hxg7 Re8 $15) 11... Qa5 {[%emt 0:02:42] aiming for ...Ncxe4.} 12. h6 {[%emt 0:
06:04]} Bh8 {[%emt 0:00:15] Strongly threatening ...Ncxe4.} 13. f3 {[%emt 0:00:
47]} Bd7 {[%emt 0:03:40]} 14. Rb1 $36 {[%emt 0:11:42] Black must now prevent
b4. White has good play.} Na4 {[%emt 0:14:26] [#]} (14... Nxd5 $5 15. exd5 Bf5
$11) 15. Bd3 $5 $146 {[%emt 0:04:20] Hoping for b4. An interesting novelty.} ({
Predecessor:} 15. Qd2 Nxc3 16. bxc3 Qc7 17. g4 Bc8 18. Nh3 Nd7 19. Nf2 Bf6 20.
O-O Be7 21. Kh2 {1-0 (42) Nakamura,H (2736) -Grischuk,A (2764) Berlin 2022})
15... Rfc8 {[%emt 0:23:51][%cal Ra4c3]} 16. Nge2 {[%emt 0:02:35]} Qd8 {[%emt 0:
01:31]} 17. Qd2 {[%emt 0:04:07]} Nxc3 {[%emt 0:02:26]} 18. Nxc3 {[%emt 0:05:32]
} a6 {[%emt 0:00:21]} 19. g4 {[%emt 0:00:00]} Be8 {[%emt 0:03:12]} 20. O-O {
[%emt 0:03:44]} (20. Bf1 {feels hotter.} b5 21. Kf2 Nd7 22. Rc1) 20... Nd7 {
[%emt 0:00:32]} 21. Rbc1 {[%emt 0:02:43]} Bf6 {[%emt 0:00:36]} 22. Rc2 {
[%emt 0:02:55]} b5 {[%emt 0:08:03]} 23. Rfc1 {[%emt 0:01:31]} Nc5 {[%emt 0:00:
31]} 24. Nd1 {[%emt 0:04:59]} (24. Be2 $14) 24... Nxd3 $11 {[%emt 0:01:34]} 25.
Qxd3 {[%emt 0:00:34]} Rxc2 {[%emt 0:02:02]} 26. Qxc2 {[%emt 0:04:05]} Qb8 {
[%emt 0:02:34]} (26... Bd7 $11) 27. Nf2 $14 {[%emt 0:04:50][%cal Yd1f2,Yf2g4,
Yg4f6]} Bd8 {[%emt 0:00:07]} (27... Qd8 $14) 28. g5 $1 $16 {[%emt 0:01:21]} Bd7
{[%emt 0:02:40]} 29. Ng4 {[%emt 0:00:00]} Qb7 {[%emt 0:04:00]} ({Black should
play} 29... Bxg4 30. fxg4 Be7) 30. Nf6+ $1 {[%emt 0:02:24]} Bxf6 {[%emt 0:00:
11]} 31. Qc7 {[%emt 0:01:18]} (31. gxf6 $6 Rc8 32. Qd2 Rxc1+ 33. Qxc1 Qb8 $14)
31... Qxc7 {[%emt 0:02:10]} 32. Rxc7 {[%emt 0:00:03]} Be7 {[%emt 0:00:54] And
now ...Rd8 would win.} 33. Rxd7 $18 {[%emt 0:00:11] Endgame KRB-KRB} Kf8 {
[%emt 0:00:01]} 34. Rc7 {[%emt 0:03:18]} (34. Rb7 $18) 34... Bd8 $16 {[%emt 0:
00:28] [#]} 35. Rd7 {[%emt 0:01:10] 0x0.0005ec18f3eadp-1022s more active
pieces.} (35. Rc6 $1 $16) 35... Be7 $1 $18 {[%emt 0:00:01]} 36. Rc7 {[%emt 0:
00:04]} Bd8 {[%emt 0:00:07] [#]} 37. Rc6 {[%emt 0:01:13]} Ke7 {[%emt 0:00:02]}
38. Bb6 {[%emt 0:01:00]} a5 $2 {[%emt 0:01:32] This move loses the game for
Black.} (38... Bxb6+ $16 39. Rxb6 Rc8) 39. Kf2 {[%emt 0:00:51]} Rb8 {[%emt 0:
02:06]} ({Not} 39... Bxb6+ 40. Rxb6 b4 41. Rb7+ Ke8 42. Ke3 $18) 40. Bc7 {
[%emt 0:01:23]} Rc8 {[%emt 0:00:01] [#]} (40... Ra8 41. Bxd6+ Kd7 42. Bxe5 Bxg5
43. Rc7+ Ke8) 41. Bxa5 $1 {[%emt 0:00:00] White is clearly winning.} Rxc6 {
[%emt 0:03:53]} (41... Rb8 42. Bxd8+) 42. Bxd8+ {[%emt 0:01:21]} Kxd8 {[%emt 0:
00:02]} 43. dxc6 {[%emt 0:00:00]} Kc7 {[%emt 0:00:05]} 44. Ke3 {[%emt 0:00:59]}
Kxc6 {[%emt 0:00:07]} 45. a3 {[%emt 0:04:10] Weighted Error Value: White=0.15 
(very precise) /Black=0.26 (precise)} 1-0

[Event "44th Chess Olympiad Open 2022"]
[Site "Chennai"]
[Date "2022.08.06"]
[Round "8.18"]
[White "Santos Latasa, Jaime"]
[Black "Hesham, Abdelrahman"]
[Result "1-0"]
[WhiteElo "2675"]
[BlackElo "2386"]
[Annotator "TA"]
[PlyCount "67"]
[EventDate "2022.??.??"]
[TimeControl "60"]

{[%evp 9,67,54,60,52,44,41,39,29,71,68,60,36,58,7,51,55,74,65,86,79,85,73,153,
163,154,151,306,339,363,371,369,377,379,367,344,0,323,276,317,320,349,314,310,
311,383,366,366,362,360,360,350,362,339,323,452,407,464,451,408,381]} 1. d4 {
[%emt 0:00:03]} Nf6 {[%emt 0:00:12]} 2. c4 {[%emt 0:00:06]} g6 {[%emt 0:00:23]}
3. Nc3 {[%emt 0:00:07]} Bg7 {[%emt 0:00:06]} 4. e4 {[%emt 0:00:05]} O-O {
[%emt 0:00:05]} 5. Be3 {[%emt 0:00:23]} c6 {[%emt 0:00:38]} 6. e5 {[%emt 0:00:
00] E70: King's Indian: Miscellaneous lines with 4 e4, including 5 Nge2 and 5
Bd3 0-0 6 Nge2.} Ne8 {[%emt 0:00:06]} 7. f4 {[%emt 0:00:06]} d6 {[%emt 0:00:37]
} 8. Nf3 {[%emt 0:00:09] White is slightly better.} c5 {[%emt 0:10:33]} 9. dxc5
{[%emt 0:02:01]} Nc6 {[%emt 0:00:07][%cal Yb8c6,Yc6e7,Ye7f5]} 10. Be2 {[%emt 0:
00:13]} Bg4 {[%emt 0:05:02]} 11. exd6 {[%emt 0:01:27]} ({White should try} 11.
cxd6 $14 exd6 12. O-O) 11... exd6 {[%emt 0:00:08] [#]} (11... Bxc3+ $5 12. bxc3
exd6 $14) 12. Qd2 $146 {[%emt 0:00:44]} ({Predecessor:} 12. O-O Bxc3 13. bxc3
Qe7 14. Bf2 dxc5 15. h3 Rd8 16. Qe1 Bf5 17. Nh4 Be4 18. Bf3 {0-1 (32) Andre,G 
(2304)-Dexter,D (2212) Germany 2005}) 12... Ne7 {[%emt 0:20:02]} 13. O-O-O {
[%emt 0:11:33] And now h3 would win. White is more active.} Nf5 {[%emt 0:01:37]
White now steadily converts the win.} 14. Bf2 $36 {[%emt 0:00:00] Hoping for
h3. White has strong initiative.} Qa5 {[%emt 0:05:15]} 15. cxd6 {[%emt 0:16:40]
} Nexd6 {[%emt 0:00:31] [#]} (15... Bxf3 $142 16. gxf3 (16. Bxf3 Nexd6 17. Qd3
Bxc3 $14) 16... Nexd6) 16. Ne5 $1 $16 {[%emt 0:00:00]} Bxe2 {[%emt 0:08:28]}
17. Qxe2 {[%emt 0:00:35] Strongly threatening g4.} Rfe8 $2 {[%emt 0:01:01]} (
17... Qa6 $16) 18. c5 $18 {[%emt 0:01:53]} Qb4 {[%emt 0:22:27]} 19. g3 {
[%emt 0:06:08]} (19. cxd6 Qxf4+ 20. Qd2 Qxd2+ 21. Rxd2 Bh6 $16) 19... Rxe5 {
[%emt 0:01:37]} 20. fxe5 {[%emt 0:00:54]} Nc4 {[%emt 0:00:00]} 21. Nd5 {
[%emt 0:01:52]} Qa4 {[%emt 0:01:54]} 22. Nc3 {[%emt 0:10:27]} ({Not} 22. g4 $2
{[#]} Qxa2 $1 23. Rhe1 Re8 24. gxf5 Qa1+ 25. Kc2 Qxb2+ 26. Kd3 Nxe5+ 27. Qxe5
Rxe5 $19) 22... Qb4 {[%emt 0:00:07]} 23. Rhe1 {[%emt 0:00:27] Black must now
prevent Nd5.} Nxe5 {[%emt 0:02:50]} 24. Qb5 {[%emt 0:02:10]} a5 {[%emt 0:02:07]
} 25. a3 {[%emt 0:01:20]} Qxb5 {[%emt 0:00:43]} 26. Nxb5 {[%emt 0:00:11]} Nf3 {
[%emt 0:00:05]} 27. Re2 {[%emt 0:01:46]} Nxh2 {[%emt 0:00:00]} 28. Nd6 {
[%emt 0:00:56]} Ng4 {[%emt 0:00:52]} 29. Nxf5 {[%emt 0:01:49]} ({But not} 29.
Nxb7 Be5 30. Be1 a4 $18) 29... gxf5 {[%emt 0:00:08]} 30. Rd5 {[%emt 0:00:36]
Inhibits Ne5.} Rc8 {[%emt 0:01:28]} 31. Rxf5 {[%emt 0:01:46]} b6 {[%emt 0:00:
14]} 32. Bg1 {[%emt 0:00:15]} bxc5 {[%emt 0:00:31]} 33. Rxc5 {[%emt 0:00:14]}
Ra8 {[%emt 0:00:07]} 34. Rec2 {[%emt 0:00:31] Weighted Error Value: White=0.22
(precise) /Black=0.25 (precise)} ({Don't do} 34. Rg5 Nf6 35. a4 h6 $18) 1-0

[Event "44th Chess Olympiad Open 2022"]
[Site "Chennai"]
[Date "2022.08.06"]
[Round "8.18"]
[White "Adly, Ahmed"]
[Black "Anton Guijarro, David"]
[Result "0-1"]
[WhiteElo "2582"]
[BlackElo "2667"]
[Annotator "TA"]
[PlyCount "66"]
[EventDate "2022.??.??"]
[TimeControl "60"]

{[%evp 10,66,1,5,22,15,10,15,19,15,39,16,0,7,20,24,28,28,28,28,27,27,20,14,20,
22,22,-54,-13,-25,-14,-25,-17,-150,-96,-735,-721,-791,-777,-1058,-1025,-1135,
-1130,-1114,-1059,-1278,-1265,-1216,-1183,-5543,-1362,-1291,-1236,-1112,-1054,
-1404,-2658,-29983,-29983]} 1. d4 {[%emt 0:00:04]} Nf6 {[%emt 0:00:15]} 2. Nf3
{[%emt 0:00:05]} d5 {[%emt 0:00:49]} 3. c4 {[%emt 0:00:06]} e6 {[%emt 0:00:08]}
4. g3 {[%emt 0:00:03]} Bb4+ {[%emt 0:00:41]} 5. Nbd2 {[%emt 0:00:02]} O-O {
[%emt 0:01:13]} 6. Bg2 {[%emt 0:00:04]} dxc4 {[%emt 0:00:27] E01: Catalan:
Early deviations.} 7. a3 {[%emt 0:00:02]} Bxd2+ {[%emt 0:00:23]} 8. Bxd2 {
[%emt 0:00:03]} Nc6 {[%emt 0:00:37] The position is equal.} 9. e3 {[%emt 0:00:
00] [#] White has compensation.} Qd7 $5 $146 {[%emt 0:05:53] An interesting
novelty.} ({Predecessor:} 9... b5 10. b3 Bb7 11. bxc4 bxc4 12. O-O Ne7 13. Qc2
c5 14. Qxc4 cxd4 15. Qxd4 Qxd4 16. Nxd4 Bxg2 17. Kxg2 {½-½ (30) Harikrishna,
P (2713)-Anton Guijarro,D (2697) Prague 2020}) 10. Rc1 {[%emt 0:04:09]} b5 $1 {
[%emt 0:08:11]} 11. b3 {[%emt 0:08:54]} Rb8 {[%emt 0:00:00]} 12. O-O {[%emt 0:
18:26]} ({Much weaker is} 12. bxc4 bxc4 13. Ne5 Nxe5 14. dxe5 Nd5 $15) 12... a5
{[%emt 0:17:53]} 13. Ne5 {[%emt 0:14:15]} Nxe5 {[%emt 0:00:00]} 14. dxe5 {
[%emt 0:00:02]} Nd5 {[%emt 0:10:21]} 15. Bxa5 {[%emt 0:00:18]} Rd8 {[%emt 0:11:
35]} 16. bxc4 {[%emt 0:11:40]} bxc4 {[%emt 0:01:28]} 17. e4 {[%emt 0:00:01]}
Nb6 {[%emt 0:01:15]} 18. Qg4 {[%emt 0:00:23]} (18. Qxd7 $11 Bxd7 19. Rfd1)
18... Qb5 {[%emt 0:04:04][%csl Ya5,Ye5]} (18... Ba6 $5 {[%cal Rd7b5]}) 19. Bb4
{[%emt 0:02:20]} Rd3 {[%emt 0:09:17]} 20. Rfd1 {[%emt 0:00:00]} Ba6 {[%emt 0:
01:35]} 21. f4 {[%emt 0:06:17] [#]} (21. Bf1 $11 Rxd1 22. Qxd1) 21... Na4 {
[%emt 0:05:26]} (21... Qd7 $142 $1 22. Kh1 Na4 23. Rxd3 cxd3) 22. Be7 $2 {
[%emt 0:11:44] This move loses the game for White.} (22. Bf1 $17) 22... Rxd1+
$19 {[%emt 0:05:29]} 23. Rxd1 {[%emt 0:02:04]} c3 {[%emt 0:00:43]} 24. Bf6 {
[%emt 0:03:30]} g6 {[%emt 0:01:41] And now ...Qc5+ would win.} 25. f5 {[%emt 0:
02:13]} c2 {[%emt 0:02:00]} 26. Rc1 {[%emt 0:00:01]} Qd3 {[%emt 0:01:07]} 27.
h4 {[%emt 0:01:53]} Qe3+ {[%emt 0:02:06]} 28. Kh2 {[%emt 0:00:01]} Qxc1 {
[%emt 0:00:25]} 29. fxe6 {[%emt 0:00:15]} Qd2 {[%emt 0:00:00]} 30. exf7+ {
[%emt 0:02:49]} Kxf7 {[%emt 0:00:32]} 31. Bg5 {[%emt 0:00:00]} Be2 {[%emt 0:02:
06]} 32. Qh3 {[%emt 0:00:44] [#]} c1=Q $1 {[%emt 0:00:43][%cal Yb8b1] ( -> ...
Rb1!)} 33. e6+ {[%emt 0:00:09]} (33. Bxd2 Qxd2) 33... Ke8 {[%emt 0:00:42]
Weighted Error Value: White=1.21/Black=0.38} 0-1